fUST/lending_fUST_20251023
["ID","MTS","AMOUNT","RATE_DAILY","PERIOD"]
[392091073,1761148853884,-5000.0,0.00023234,2]
[392091074,1761148867319,0.01,0.00023234,2]
[392091075,1761148867345,4999.99,0.00023234,2]
[392091076,1761148889605,5000.0,0.00023234,2]
[392091077,1761148901265,-877.0,0.00023468,2]
[392091078,1761148901306,-3941.27914526,0.00023469,14]
[392091079,1761148907143,-2650.75662689,0.000234,2]
[392091080,1761148907179,-363.45170948,0.00023469,14]
[392091081,1761148911633,3971.59332726,0.00023469,2]
[392091082,1761148919991,5000.0,0.00023234,2]
[392091083,1761148927710,300.0,0.000232,2]
[392091084,1761148930557,-1028.40667274,0.00023469,2]
[392091085,1761148936296,5000.0,0.00023469,2]
[392091086,1761148944275,2943.19665452,0.00023469,2]
[392091087,1761148959661,5000.0,0.00023234,2]
[392091088,1761148968694,-2056.80334548,0.00023469,2]
[392091089,1761148989951,5000.0,0.00023234,2]
[392091090,1761149011716,5000.0,0.00023234,2]
[392091091,1761149033692,0.01,0.00023234,2]
[392091092,1761149033716,4999.99,0.00023234,2]
[392091094,1761149038654,205.56321382,0.00023134,2]
[392091095,1761149053766,196.0,0.0001515,2]
[392091096,1761149054062,196.0,0.00015252,2]
[392091097,1761149054384,196.0,0.00015353,2]
[392091098,1761149054667,196.0,0.00015455,2]
[392091099,1761149054954,196.0,0.00015557,2]
[392091100,1761149055243,196.0,0.00015659,2]
[392091101,1761149055580,196.0,0.0001576,2]
[392091102,1761149055870,196.0,0.00015862,2]
[392091103,1761149056173,196.0,0.00015964,2]
[392091104,1761149056481,196.0,0.00016066,2]
[392091105,1761149056784,196.0,0.00016167,2]
[392091106,1761149057108,196.0,0.00016269,2]
[392091107,1761149057397,196.0,0.00016371,2]
[392091108,1761149057682,196.0,0.00016472,2]
[392091109,1761149057976,196.0,0.00016574,2]
[392091110,1761149058263,196.0,0.00016676,2]
[392091111,1761149058559,196.0,0.00016778,2]
[392091112,1761149058844,196.0,0.00016879,2]
[392091113,1761149059119,196.0,0.00016981,2]
[392091114,1761149059405,196.0,0.00017083,2]
[392091115,1761149059729,196.0,0.00017184,2]
[392091116,1761149060195,196.0,0.00017286,2]
[392091117,1761149060621,196.0,0.00017388,2]
[392091118,1761149060903,196.0,0.0001749,2]
[392091119,1761149061187,90.45678618,0.00017591,2]
[392091120,1761149061212,105.54321382,0.00017591,2]
[392091121,1761149061476,196.0,0.00017693,2]
[392091122,1761149061846,196.0,0.00017795,2]
[392091123,1761149062088,300.0,0.000232,2]
[392091124,1761149062166,196.0,0.00017897,2]
[392091125,1761149062457,196.0,0.00017998,2]
[392091126,1761149062785,224.37665742,0.000181,2]
[392091127,1761149069695,-5000.0,0.00023469,2]
[392091128,1761149073589,0.01,0.000232,2]
[392091129,1761149078920,-5000.0,0.00022968,2]
[392091130,1761149079153,-299.99,0.000232,2]
[392091131,1761149084558,300.0,0.000232,2]
[392091132,1761149091885,5000.0,0.00023234,2]
[392091133,1761149095482,300.0,0.000232,2]
[392091134,1761149096132,3800.03,0.0002267,2]
[392091135,1761149096156,716.3691246,0.0002267,2]
[392091136,1761149107177,300.0,0.000232,2]
[392091137,1761149114812,5000.0,0.00023234,2]
[392091138,1761149125707,300.0,0.000181,2]
[392091139,1761149125834,300.0,0.000232,2]
[392091142,1761149136448,300.0,0.000181,2]
[392091143,1761149136585,300.0,0.000232,2]
[392091144,1761149136932,2783.6408754,0.00023234,2]
[392091145,1761149136959,2216.3591246,0.00023234,2]
[392091146,1761149147680,300.0,0.000232,2]
[392091147,1761149148507,300.0,0.000181,2]
[392091148,1761149159006,5000.0,0.00023234,2]
[392091149,1761149159338,300.0,0.000181,2]
[392091150,1761149159769,300.0,0.000232,2]
[392091152,1761149173393,1941.86916791,0.00023378,2]
[392091153,1761149173917,295.41883288,0.0001515,2]
[392091154,1761149181468,5000.0,0.000235,2]
[392091155,1761149202661,2762.72199921,0.000234,2]
[392091156,1761149202706,1054.36754351,0.000234,2]
[392091157,1761149204489,5000.0,0.000235,2]
[392091158,1761149204813,3945.64245649,0.000234,2]
[392091159,1761149204838,1249.84053221,0.000234,2]
[392091160,1761149228753,5000.0,0.000235,2]
[392091163,1761149250905,3750.16946779,0.000235,2]
[392091164,1761149250933,1249.83053221,0.000235,2]
[392091165,1761149258602,3974.8965333,0.00022896,2]
[392091166,1761149273525,4626.23100704,0.000235,2]
[392091284,1761149374346,149.05192745,0.00013699,2]
[392091286,1761149374373,608.08824155,0.00013699,2]
[392091287,1761149374567,757.140169,0.00020187,2]
[392091290,1761149414137,1058.59473062,0.00023383,10]
[392091339,1761149432600,-300.0,0.000235,2]
[392091341,1761149432609,-1198.26952887,0.0002362,2]
[392091343,1761149432622,-474.08125622,0.0002362,2]
[392091346,1761149432634,-454.00968075,0.0002362,2]
[392091348,1761149432643,-364.25999708,0.0002362,2]
[392091349,1761149432652,-50.84088466,0.0002365,2]
[392091352,1761149432664,-146.15911534,0.0002365,2]
[392091354,1761149432673,-197.0,0.00023678,2]
[392091356,1761149432683,-224.40394054,0.00023692,2]
[392091358,1761149432694,-290.56567412,0.00023695,2]
[392091361,1761149432713,-9.43432588,0.00023695,2]
[392091363,1761149432722,-942.89,0.00023696,3]
[392091365,1761149432731,-471.44,0.00023696,3]
[392091367,1761149432740,-235.72,0.00023696,3]
[392091369,1761149432749,-707.19,0.00023696,3]
[392091371,1761149432758,-346.47,0.00023696,10]
[392091373,1761149432767,-500.0,0.00023705,2]
[392091375,1761149432776,-500.0,0.00023705,2]
[392091377,1761149432784,-500.0,0.00023705,2]
[392091379,1761149432794,-500.0,0.00023705,2]
[392091381,1761149432803,-500.0,0.00023705,2]
[392091382,1761149432812,-500.0,0.00023705,2]
[392091384,1761149432821,-500.0,0.00023705,2]
[392091386,1761149432831,-500.0,0.00023705,2]
[392091389,1761149432840,-500.0,0.00023705,2]
[392091390,1761149432850,-298.00855773,0.00023705,2]
[392091392,1761149432859,-154.412,0.00023705,4]
[392091394,1761149432868,-225.50092141,0.00023705,2]
[392091396,1761149432876,-299.82938108,0.00023705,2]
[392091398,1761149432885,-125923.07102392,0.00023706,2]
[392091429,1761149436699,308.3,0.000235,2]
[392091454,1761149438163,-500.0,0.00023705,2]
[392091456,1761149438174,-233.86066332,0.00023705,2]
[392091465,1761149438259,-266.13933668,0.00023705,2]
[392091466,1761149438270,-500.0,0.00023705,2]
[392091469,1761149438282,-500.0,0.00023705,2]
[392091470,1761149438294,-500.0,0.00023705,2]
[392091473,1761149438305,-500.0,0.00023705,2]
[392091474,1761149438315,-259.27066332,0.00023705,2]
[392091479,1761149438355,-240.72933668,0.00023705,2]
[392091481,1761149438365,-500.0,0.00023705,2]
[392091483,1761149438376,-500.0,0.00023705,2]
[392091485,1761149438387,-500.0,0.00023705,2]
[392091487,1761149438398,-500.0,0.00023705,2]
[392091488,1761149438408,-500.0,0.00023705,2]
[392091490,1761149438418,-500.0,0.00023705,2]
[392091492,1761149438429,-500.0,0.00023705,2]
[392091493,1761149438439,-500.0,0.00023705,2]
[392091494,1761149438449,-500.0,0.00023705,2]
[392091495,1761149438459,-416.25007408,0.00023705,2]
[392091496,1761149438470,-500.0,0.00023705,2]
[392091497,1761149438478,-500.0,0.00023705,2]
[392091498,1761149438488,-500.0,0.00023705,2]
[392091499,1761149438497,-500.0,0.00023705,2]
[392091500,1761149438507,-500.0,0.00023705,2]
[392091501,1761149438517,-500.0,0.00023705,2]
[392091502,1761149438527,-500.0,0.00023705,2]
[392091503,1761149438537,-500.0,0.00023705,2]
[392091504,1761149438546,-500.0,0.00023705,2]
[392091505,1761149438556,-500.0,0.00023705,2]
[392091506,1761149438565,-500.0,0.00023705,2]
[392091507,1761149438576,-500.0,0.00023705,2]
[392091508,1761149438586,-500.0,0.00023705,2]
[392091509,1761149438598,-426.73206692,0.00023705,2]
[392091510,1761149438609,-500.0,0.00023705,2]
[392091511,1761149438620,-500.0,0.00023705,2]
[392091512,1761149438634,-500.0,0.00023705,2]
[392091513,1761149438644,-500.0,0.00023705,2]
[392091514,1761149438655,-500.0,0.00023705,2]
[392091515,1761149438666,-500.0,0.00023705,2]
[392091516,1761149438676,-500.0,0.00023705,2]
[392091517,1761149438686,-500.0,0.00023705,2]
[392091518,1761149438697,-500.0,0.00023705,2]
[392091519,1761149438708,-500.0,0.00023705,2]
[392091520,1761149438718,-500.0,0.00023705,2]
[392091521,1761149438728,-500.0,0.00023705,2]
[392091522,1761149438738,-200.1292335,0.00023705,2]
[392091523,1761149438749,-500.0,0.00023705,2]
[392091524,1761149438759,-500.0,0.00023705,2]
[392091525,1761149438769,-500.0,0.00023705,2]
[392091526,1761149438779,-500.0,0.00023705,2]
[392091527,1761149438789,-500.0,0.00023705,2]
[392091528,1761149438799,-500.0,0.00023705,2]
[392091529,1761149438810,-14877.23173791,0.00023706,2]
[392091552,1761149440690,-3e-08,0.00023706,2]
[392091585,1761149444612,-288.73,0.00023696,10]
[392091586,1761149444626,-25519.61151958,0.00023706,2]
[392091687,1761149446517,-613.75846597,0.00023706,2]
[392091688,1761149446528,-26167.88375297,0.00023706,2]
[392091689,1761149446704,-795.543317,0.00023706,2]
[392091690,1761149447628,-12159.38354648,0.00023706,2]
[392091691,1761149573438,919.6438457,0.00022705,2]
[392091693,1761150148348,273.0,0.00024143,120]
[392091695,1761150227569,5000.0,0.00023501,2]
[392091696,1761150231427,423.2178994,0.00022621,30]
[392091698,1761150235632,381.57400897,0.00023501,2]
[392091699,1761150251411,5000.0,0.00023501,2]
[392091700,1761150273966,2191.99928972,0.00023501,2]
[392091701,1761150313919,300.0,0.000235,2]
[392091702,1761150326312,300.0,0.000235,2]
[392091704,1761150337126,300.0,0.000235,2]
[392091705,1761150339181,1121.49692317,0.00023501,2]
[392091706,1761150348686,300.0,0.000235,2]
[392091707,1761150359763,300.0,0.000235,2]
[392091708,1761150361863,-682.05315633,0.00023573,2]
[392091709,1761150361895,-1732.84227852,0.00023573,2]
[392091710,1761150361925,-242.83999804,0.00023573,2]
[392091711,1761150361955,-300.0,0.00023594,2]
[392091712,1761150361985,-967.24,0.00023595,3]
[392091713,1761150362015,-483.62,0.00023595,3]
[392091714,1761150362043,-241.81,0.00023595,3]
[392091715,1761150364225,-725.43,0.00023595,3]
[392091716,1761150364258,-436.49,0.00023595,10]
[392091717,1761150364291,-500.0,0.00023603,2]
[392091718,1761150364322,-500.0,0.00023603,2]
[392091719,1761150364353,-500.0,0.00023603,2]
[392091720,1761150364395,-500.0,0.00023603,2]
[392091721,1761150364426,-500.0,0.00023603,2]
[392091722,1761150364461,-166.31354165,0.00023603,2]
[392091723,1761150364494,-500.0,0.00023603,2]
[392091724,1761150364527,-352.37381191,0.00023603,2]
[392091725,1761150364558,-138.79529288,0.00023603,2]
[392091726,1761150367319,-363.75,0.00023595,10]
[392091727,1761150367348,-300.0,0.00023602,2]
[392091728,1761150367383,-361.20470712,0.00023603,2]
[392091729,1761150367411,-194.33230089,0.00023603,2]
[392091730,1761150367442,-579.0785485,0.00023603,2]
[392091731,1761150367471,-500.0,0.00023603,2]
[392091732,1761150367503,-500.0,0.00023603,2]
[392091733,1761150367533,-620.01292335,0.00023603,2]
[392091734,1761150367563,-500.0,0.00023603,2]
[392091735,1761150367594,-500.0,0.00023603,2]
[392091736,1761150367626,-500.0,0.00023603,2]
[392091737,1761150368496,300.0,0.000235,2]
[392091738,1761150368669,1121.50692317,0.00023501,2]
[392091739,1761150370255,-500.0,0.00023603,2]
[392091740,1761150370289,-500.0,0.00023603,2]
[392091741,1761150370320,-500.0,0.00023603,2]
[392091742,1761150370352,-500.0,0.00023603,2]
[392091743,1761150370389,-500.0,0.00023603,2]
[392091744,1761150370430,-500.0,0.00023603,2]
[392091745,1761150370461,-500.0,0.00023603,2]
[392091746,1761150370492,-1200.0,0.00023603,2]
[392091747,1761150370795,300.0,0.000235,2]
[392091748,1761150376433,5000.0,0.00023501,2]
[392091749,1761150379012,300.0,0.000235,2]
[392091750,1761150381418,300.0,0.000235,2]
[392091751,1761150384564,5000.0,0.00023501,2]
[392091752,1761150392322,3878.49307683,0.00023501,2]
[392091753,1761150407800,3878.50307683,0.00023501,2]
[392091760,1761150442551,336.92,0.0002342,6]
[392091764,1761150470476,56514.0873333,0.00018,2]
[392091765,1761150474743,5131.76796127,0.00018,2]
[392091768,1761150481493,-596.79651185,0.00023573,2]
[392091769,1761150481523,-303.12,0.00023595,10]
[392091770,1761150481554,-252.6,0.00023595,10]
[392091771,1761150481584,-210.5,0.00023595,10]
[392091772,1761150481617,-175.42,0.00023595,10]
[392091773,1761150481649,-300.0,0.00023603,2]
[392091774,1761150481680,-557.0,0.00023603,2]
[392091775,1761150481713,-383.01448315,0.00023604,2]
[392091776,1761150481742,-268.70103834,0.00023604,2]
[392091777,1761150481771,-297.26123324,0.00023604,2]
[392091778,1761150481799,-188.83233114,0.00023604,2]
[392091779,1761150481828,-539.15264577,0.00023604,2]
[392091780,1761150481858,-361.96042485,0.00023604,2]
[392091781,1761150481888,-449.34,0.00023604,2]
[392091783,1761150488098,232.61266332,0.00023595,10]
[392091784,1761150488122,644.49733668,0.00023595,10]
[392091785,1761150489864,300.0,0.00023604,2]
[392091787,1761150493356,5511.15595764,0.00021,5]
[392091793,1761150505070,2115.0061041,0.000176,2]
[392091795,1761150509420,286.66264542,0.0001,2]
[392091796,1761150509841,301.28205394,0.0002,2]
[392091797,1761150511056,358.03742084,0.00022,2]
[392091798,1761150512726,483.36848138,0.0002,2]
[392091799,1761150512748,10000.01,0.0002,2]
[392091800,1761150512771,4066.79681813,0.0002,2]
[392091801,1761150514738,687.85389211,0.0001,7]
[392091802,1761150514774,5245.35928976,0.00017,2]
[392091803,1761150514799,2341.44373286,0.00017,2]
[392091804,1761150515238,7658.56626714,0.00022,5]
[392091805,1761150515263,10000.01,0.00022,5]
[392091806,1761150515286,10000.01,0.00022,5]
[392091807,1761150515309,3455.54250825,0.00022,5]
[392091808,1761150516241,560.81270055,0.00018,5]
[392091811,1761150523484,886.89345988,0.0002,2]
[392091812,1761150528043,3443.17521907,0.00022,2]
[392091925,1761150632587,-242.83999804,0.00023573,2]
[392091927,1761150632597,-460.7789449,0.00023573,2]
[392091933,1761150632641,-925.4948779,0.00023573,2]
[392091935,1761150632651,-300.0,0.00023604,2]
[392091937,1761150632660,-500.0,0.00023604,2]
[392091938,1761150632670,-393.61,0.00023604,2]
[392091941,1761150632680,-209531.37670693,0.00023605,2]
[392091978,1761150638362,-10651.62671797,0.00023605,2]
[392092036,1761150640528,-21005.47957919,0.00023605,2]
[392092127,1761150643771,-9378.65066255,0.00023605,2]
[392092342,1761150646691,-119432.86633336,0.00023605,2]
[392092343,1761150646702,-50000.0,0.00023673,2]
[392092344,1761150646713,-154.412,0.00023699,4]
[392092345,1761150646725,-1194.0359751,0.000237,30]
[392092346,1761150646736,-638.04578801,0.00023704,2]
[392092347,1761150646747,-6785.93696483,0.00023705,2]
[392092348,1761150646760,-8588.45147112,0.00023705,2]
[392092349,1761150646771,-10603.02650755,0.00023705,2]
[392092350,1761150646782,-12829.66207414,0.00023705,2]
[392092351,1761150646793,-15268.35817087,0.00023705,2]
[392092352,1761150646804,-17919.11479776,0.00023705,2]
[392092353,1761150646814,-284.74698777,0.00023705,2]
[392092354,1761150646830,-151.0,0.00023705,7]
[392092355,1761150646841,-151.0,0.00023705,7]
[392092356,1761150646852,-151.0,0.00023705,7]
[392092357,1761150646863,-151.0,0.00023705,7]
[392092358,1761150646874,-151.0,0.00023705,7]
[392092359,1761150646884,-151.0,0.00023705,7]
[392092360,1761150646893,-151.964546,0.00023705,7]
[392092361,1761150646902,-151.0,0.00023705,7]
[392092362,1761150646912,-151.0,0.00023705,7]
[392092363,1761150646922,-151.0,0.00023705,7]
[392092364,1761150646939,-151.0,0.00023705,7]
[392092365,1761150646949,-151.0,0.00023705,7]
[392092366,1761150646959,-151.0,0.00023705,7]
[392092367,1761150646970,-151.0,0.00023705,7]
[392092368,1761150646982,-151.0,0.00023705,7]
[392092369,1761150646992,-151.0,0.00023705,7]
[392092370,1761150647002,-151.0,0.00023705,7]
[392092371,1761150647012,-151.0,0.00023705,7]
[392092373,1761150647023,-152.201984,0.00023705,7]
[392092375,1761150647034,-151.0,0.00023705,7]
[392092377,1761150647043,-151.0,0.00023705,7]
[392092378,1761150647053,-151.0,0.00023705,7]
[392092379,1761150647064,-371.710132,0.00023705,7]
[392092380,1761150647076,-153.255486,0.00023705,7]
[392092381,1761150647088,-371.710132,0.00023705,7]
[392092382,1761150647098,-153.255486,0.00023705,7]
[392092383,1761150647108,-153.255486,0.00023705,7]
[392092384,1761150647118,-371.710132,0.00023705,7]
[392092385,1761150647128,-153.255486,0.00023705,7]
[392092386,1761150647138,-371.710132,0.00023705,7]
[392092387,1761150647147,-151.0,0.00023705,7]
[392092388,1761150647157,-151.0,0.00023705,7]
[392092389,1761150647166,-1435.607109,0.00023706,2]
[392092390,1761150647176,-151.0,0.00023706,7]
[392092391,1761150647186,-151.0,0.00023706,7]
[392092392,1761150647196,-216.043302,0.00023706,7]
[392092393,1761150647206,-500.0,0.00023706,2]
[392092394,1761150647217,-2857.0,0.00023758,2]
[392092395,1761150647227,-500.0,0.00023773,2]
[392092396,1761150647236,-481.28677187,0.00023773,2]
[392092397,1761150647246,-500.0,0.00023773,2]
[392092398,1761150647256,-198.32272069,0.00023773,2]
[392092399,1761150647268,-500.0,0.00023773,2]
[392092400,1761150647278,-500.0,0.00023773,2]
[392092401,1761150647288,-500.0,0.00023773,2]
[392092402,1761150647299,-500.0,0.00023773,2]
[392092403,1761150647308,-500.0,0.00023773,2]
[392092404,1761150647319,-500.0,0.00023773,2]
[392092405,1761150647335,-500.0,0.00023773,2]
[392092406,1761150647346,-500.0,0.00023773,2]
[392092407,1761150647356,-500.0,0.00023773,2]
[392092408,1761150647367,-500.0,0.00023773,2]
[392092409,1761150647378,-500.0,0.00023773,2]
[392092410,1761150647390,-500.0,0.00023773,2]
[392092411,1761150647401,-500.0,0.00023773,2]
[392092412,1761150647412,-150.86007013,0.00023773,2]
[392092413,1761150647422,-500.0,0.00023773,2]
[392092414,1761150647433,-500.0,0.00023773,2]
[392092415,1761150647443,-169.81389285,0.00023773,2]
[392092416,1761150647453,-500.0,0.00023773,2]
[392092417,1761150647463,-500.0,0.00023773,2]
[392092418,1761150647473,-502.17932592,0.00023773,2]
[392092419,1761150647483,-500.0,0.00023773,2]
[392092420,1761150647492,-500.0,0.00023773,2]
[392092421,1761150647501,-481.13614356,0.00023773,2]
[392092422,1761150647511,-151.0,0.00023773,7]
[392092423,1761150647520,-151.0,0.00023773,7]
[392092424,1761150647530,-151.0,0.00023773,7]
[392092425,1761150647539,-268.89333214,0.00023897,3]
[392092426,1761150647549,-1075.57332858,0.00023897,3]
[392092427,1761150647558,-2420.03998929,0.00023897,3]
[392092428,1761150647568,-4302.2933143,0.00023897,3]
[392092429,1761150647583,-6722.3333036,0.00023897,3]
[392092430,1761150647593,-151.0,0.00023897,7]
[392092431,1761150647602,-9680.15995718,0.00023897,3]
[392092432,1761150647612,-13162.59750177,0.00023897,3]
[392092433,1761150647622,-371.710132,0.00023897,7]
[392092434,1761150647631,-153.255486,0.00023897,7]
[392092435,1761150647641,-371.710132,0.00023897,7]
[392092436,1761150647650,-153.255486,0.00023897,7]
[392092437,1761150647660,-153.255486,0.00023897,7]
[392092438,1761150647669,-371.710132,0.00023897,7]
[392092439,1761150647680,-153.255486,0.00023897,7]
[392092440,1761150647690,-371.710132,0.00023897,7]
[392092441,1761150647700,-173.439999,0.00023897,7]
[392092442,1761150647710,-1386.27382278,0.00023905,2]
[392092443,1761150647720,-169.58352199,0.00023907,5]
[392092444,1761150647730,-160.0,0.0002391,2]
[392092445,1761150647739,-500.0,0.0002398,2]
[392092446,1761150647749,-9261.21,0.000241,7]
[392092447,1761150647759,-197.0,0.000241,2]
[392092448,1761150647770,-3107.78519877,0.00024142,2]
[392092449,1761150647779,-379.9960258,0.00024149,2]
[392092450,1761150647789,-197.0,0.0002415,2]
[392092451,1761150647799,-151.0,0.00024173,7]
[392092452,1761150647808,-1386.27382278,0.00024237,2]
[392092453,1761150647817,-500.0,0.00024254,2]
[392092454,1761150647833,-500.0,0.00024321,2]
[392092455,1761150647846,-500.0,0.00024321,2]
[392092456,1761150647855,-507.57033413,0.00024321,2]
[392092457,1761150647865,-1000.0,0.00024321,2]
[392092458,1761150647875,-500.0,0.00024321,2]
[392092459,1761150647885,-1000.0,0.00024321,2]
[392092460,1761150647894,-500.0,0.00024321,2]
[392092461,1761150647903,-502.46205487,0.00024321,2]
[392092462,1761150647913,-1000.0,0.00024321,2]
[392092463,1761150647922,-1000.0,0.00024321,2]
[392092464,1761150647937,-500.0,0.00024321,2]
[392092465,1761150647946,-176.0,0.00024336,2]
[392092466,1761150647956,-2857.0,0.0002435,2]
[392092467,1761150647965,-600.0,0.00024486,20]
[392092468,1761150647978,-200.0,0.000245,5]
[392092469,1761150647988,-500.0,0.00024528,2]
[392092470,1761150647997,-501.4570754,0.00024567,2]
[392092471,1761150648008,-500.0,0.00024567,2]
[392092472,1761150648018,-508.50294279,0.00024567,2]
[392092473,1761150648027,-501.11507582,0.00024567,2]
[392092474,1761150648037,-500.0,0.00024567,2]
[392092475,1761150648047,-500.0,0.00024567,2]
[392092476,1761150648055,-151.0,0.00024567,7]
[392092477,1761150648065,-371.710132,0.00024567,7]
[392092478,1761150648079,-153.255486,0.00024567,7]
[392092479,1761150648089,-371.710132,0.00024567,7]
[392092480,1761150648098,-153.255486,0.00024567,7]
[392092481,1761150648108,-153.255486,0.00024567,7]
[392092482,1761150648118,-371.710132,0.00024567,7]
[392092483,1761150648127,-371.710132,0.00024567,7]
[392092484,1761150648137,-153.255486,0.00024567,7]
[392092485,1761150648147,-2737.0,0.00024567,2]
[392092486,1761150648156,-1386.27382278,0.00024568,2]
[392092487,1761150648166,-176.0,0.00024631,2]
[392092488,1761150648176,-169.58352199,0.00024646,5]
[392092489,1761150648186,-280.0,0.00024658,2]
[392092490,1761150648195,-161.239846,0.00024658,7]
[392092491,1761150648206,-510.53968126,0.00024658,2]
[392092492,1761150648216,-176.0,0.00024699,2]
[392092493,1761150648226,-10053.80316414,0.00024774,2]
[392092494,1761150648236,-500.0,0.00024802,2]
[392092495,1761150648247,-2857.0,0.00024805,2]
[392092496,1761150648257,-1007.01973674,0.00024868,2]
[392092497,1761150648267,-632.56765264,0.00024868,2]
[392092498,1761150648277,-500.0,0.00024873,2]
[392092499,1761150648287,-500.0,0.00024873,2]
[392092500,1761150648298,-176.0,0.00024887,2]
[392092501,1761150648308,-151.0,0.000249,10]
[392092502,1761150648318,-151.0,0.000249,8]
[392092503,1761150648431,-275376.50980396,0.000249,2]
[392092504,1761150648446,-24769.04996304,0.000249,2]
[392092505,1761150648456,-371.710132,0.000249,7]
[392092506,1761150648465,-153.255486,0.000249,7]
[392092507,1761150648476,-153.255486,0.000249,7]
[392092508,1761150648486,-371.710132,0.000249,7]
[392092509,1761150648496,-153.255486,0.000249,7]
[392092510,1761150648506,-371.710132,0.000249,7]
[392092511,1761150648516,-153.255486,0.000249,7]
[392092512,1761150648525,-371.710132,0.000249,7]
[392092513,1761150648534,-1386.27382278,0.000249,2]
[392092514,1761150648543,-1934.48,0.00024965,3]
[392092515,1761150648552,-967.24,0.00024965,3]
[392092516,1761150648561,-483.62,0.00024965,3]
[392092517,1761150648570,-56385.86721636,0.00025,8]
[392092521,1761150726862,912.0,0.00023501,2]
[392092522,1761150761268,334.51,0.00023495,10]
[392092527,1761150963201,541.81619081,0.0002341,2]
[392092528,1761150999425,562.4395385,0.0002341,2]
[392092529,1761151046403,242.83999804,0.0002341,2]
[392092531,1761151112306,666.0,0.0002264,2]
[392092536,1761151206021,256.84941888,0.00023491,2]
[392092537,1761151210183,171.05882739,0.00023491,2]
[392092540,1761151252286,164.04,0.00023495,10]
[392092541,1761151259724,492.13459617,0.0002341,2]
[392092542,1761151263291,162.16,0.00023495,10]
[392092543,1761151273664,262.47,0.00023495,10]
[392092544,1761151284081,218.72,0.00023495,10]
[392092545,1761151289884,218.72485933,0.00023404,2]
[392092546,1761151295359,182.27,0.00023495,10]
[392092549,1761151296710,395.20118848,0.00023404,2]
[392092553,1761151303424,811.42743012,0.0002341,2]
[392092556,1761151307390,151.89,0.00023495,10]
[392092560,1761151317755,759.49,0.00023495,10]
[392092563,1761151348419,4601.349999,0.00035488,30]
[392092564,1761151364455,1664.4,0.00021907,2]
[392092569,1761151439967,1643.21,0.00022101,2]
[392092581,1761151520042,527.29315021,0.00023405,2]
[392092589,1761151567711,-160.0,0.00023504,2]
[392092590,1761151567741,-268.1101382,0.00023504,2]
[392092591,1761151567768,-188.09072684,0.00023504,2]
[392092592,1761151567798,-754.0,0.00023504,2]
[392092593,1761151567827,-300.0,0.00023504,2]
[392092594,1761151598019,1622.3,0.00022321,2]
[392092595,1761151604964,-58377.7,0.00023505,2]
[392092600,1761151643732,649.14194412,0.00023405,2]
[392092650,1761151673839,1601.65,0.00022323,2]
[392092651,1761151780412,461.38150646,0.00023405,2]
[392092652,1761151797952,99960.0,0.00035488,45]
[392092684,1761151832618,-164839.87507123,0.00023505,2]
[392092691,1761151832672,-2303.91929256,0.00023505,2]
[392092726,1761151838648,-144478.50563621,0.00023505,2]